bitfinex/quotes_ETHUSD_20240824
["timestamp","ask_amount","ask_price","bid_price","bid_amount"]
[1724538988678,1.62988446,2757.7,2757.5,0.782]
[1724538988868,1.50379432,2757.7,2757.5,0.782]
[1724538989675,5.12986432,2757.8,2757.5,0.782]
[1724538989887,0.1260894,2757.7,2757.5,0.782]
[1724538990190,0.75189026,2757.6,2757.5,3.82932]
[1724538990334,1.12785042,2757.7,2757.5,3.82932]
[1724538990683,1.12785042,2757.6,2757.5,3.82932]
[1724538991540,1.12785042,2757.6,2757.5,3.1515]
[1724538991743,1.50379432,2757.6,2757.5,3.1515]
[1724538991977,1.62988967,2757.6,2757.5,3.1515]
[1724538992143,0.12609535,2757.6,2757.5,3.1515]
[1724538992344,0.75183947,2757.6,2757.5,3.1515]
[1724538992761,0.75177602,2757.6,2757.5,3.1515]
[1724538993341,0.75176024,2757.6,2757.5,3.1515]
[1724538993572,0.75172317,2757.6,2757.5,3.829319]
[1724538995972,1.12772445,2757.7,2757.5,3.829319]
[1724538996290,1.12772445,2757.6,2757.5,3.1515]
[1724538996598,1.62988588,2757.6,2757.5,3.1515]
[1724538996810,1.12756051,2757.6,2757.5,3.1515]
[1724538997362,0.12609323,2757.6,2757.5,0.782]
[1724538997662,1.62988755,2757.6,2757.5,0.782]
[1724538999200,0.12609323,2757.6,2757.5,0.782]
[1724538999763,1.12781213,2757.6,2757.5,0.782]
[1724539000269,1.12781213,2757.6,2757.5,3.2368]
[1724539000469,2.56141975,2757.6,2757.5,3.2368]
[1724539002927,1.55969513,2757.6,2757.5,3.2368]
[1724539003219,2.56193865,2757.6,2757.5,3.2368]
[1724539003919,1.55969584,2757.6,2757.5,3.2368]
[1724539004414,3.40041125,2757.6,2757.5,3.2368]
[1724539004779,3.06349016,2757.6,2757.5,3.2368]
[1724539004975,3.40041198,2757.6,2757.5,3.923127]
[1724539005216,3.06349016,2757.6,2757.5,3.923127]
[1724539005718,3.40041135,2757.6,2757.5,3.923127]
[1724539007519,3.77890892,2757.6,2757.5,3.923127]
[1724539007725,3.77890892,2757.6,2757.5,3.2368]
[1724539007937,3.44198773,2757.6,2757.5,3.2368]
[1724539008078,1.55969584,2757.6,2757.5,3.2368]
[1724539008280,3.77890553,2757.6,2757.5,3.2368]
[1724539008634,4.11719764,2757.6,2757.5,3.2368]
[1724539008926,3.78027984,2757.6,2757.5,3.2368]
[1724539009132,4.31934938,2757.6,2757.5,3.2368]
[1724539010120,2.4356831,2757.6,2757.5,3.2368]
[1724539011181,6.0620231,2757.6,2757.5,0.782]
[1724539011381,11.9534953,2757.6,2757.5,0.782]
[1724539011632,19.67928003,2757.6,2757.5,0.782]
[1724539011800,20.93429211,2757.6,2757.5,0.782]
[1724539011995,24.94204036,2757.6,2757.5,0.70380001]
[1724539012187,21.82636585,2757.6,2757.5,0.70380001]
[1724539012387,21.82636585,2757.6,2756.6,2.4548]
[1724539012388,3.6268,2757.3,2756.6,6.08235]
[1724539012604,3.62654,2757.5,2756.7,6.690555]
[1724539012605,1.50640302,2756.9,2756.7,6.690555]
[1724539012832,1.1298282,2756.8,2756.7,6.690555]
[1724539013192,1.1298282,2756.8,2756.7,10.318075]
[1724539013390,1.1298282,2756.8,2756.7,6.702855]
[1724539013731,1.1298282,2756.9,2756.8,3.62739]
[1724539013934,1.1298282,2756.9,2756.8,4.6604215]
[1724539014428,1.1298282,2756.9,2756.8,1.0330315]
[1724539014632,1.1298282,2756.9,2756.7,6.702845]
[1724539014929,0.75296917,2756.8,2756.7,3.075335]
[1724539015149,2.56343582,2756.8,2756.7,3.075335]
[1724539015444,2.18643853,2756.8,2756.7,3.075335]
[1724539015589,2.18643853,2756.8,2756.7,6.702855]
[1724539015792,1.43360762,2756.8,2756.7,6.702855]
[1724539016304,2.56343582,2756.8,2756.7,2.4671]
[1724539016516,1.55973237,2756.8,2756.7,2.4671]
[1724539016719,1.55973237,2756.8,2756.7,3.1691]
[1724539016916,3.40299264,2756.8,2756.7,3.1691]
[1724539017116,1.55973237,2756.8,2756.7,3.1691]
[1724539017301,2.18610173,2756.8,2756.7,3.1691]
[1724539018643,1.43360762,2756.8,2756.7,3.1691]
[1724539019402,0.75253753,2756.9,2756.8,3.62739]
[1724539019603,0.75253753,2756.9,2756.8,6.09449]
[1724539023673,0.75253753,2756.9,2756.8,9.72188]
[1724539023964,0.75253753,2757.1,2757.0,6.09423]
[1724539024339,0.75253753,2757.1,2757.0,7.366379]
[1724539024740,0.75253753,2757.1,2757.0,10.993509]
[1724539025121,0.75253753,2757.2,2757.1,9.72108]
[1724539025327,0.75253753,2757.5,2757.1,2.4671]
[1724539025565,0.75253753,2757.5,2757.4,6.0937]
[1724539026568,0.75253753,2757.5,2757.4,10.692334]
[1724539026781,1.43360762,2757.6,2757.5,3.62647]
[1724539028471,2.56258585,2757.6,2757.5,3.62647]
[1724539029294,2.56258585,2757.7,2757.6,3.62634]
[1724539030498,1.50640302,2757.8,2757.7,6.09331]
[1724539030499,1.12897823,2757.8,2757.7,6.09331]
[1724539030678,0.75334602,2757.8,2757.7,6.09331]
[1724539031251,2.56258585,2757.9,2757.7,6.09331]
[1724539031602,0.75330032,2757.8,2757.7,6.09331]
[1724539032193,1.12897823,2757.8,2757.7,6.09331]
[1724539032355,1.12897823,2757.8,2757.7,3.62621]
[1724539033163,0.75324876,2757.8,2757.7,7.25242]
[1724539033900,2.18685638,2757.9,2757.8,3.62607]
[1724539034191,0.75324876,2757.9,2757.8,7.25214]
[1724539037363,0.75324876,2758.0,2757.9,3.62594]
[1724539038411,0.75324876,2758.0,2757.9,6.09524]
[1724539038616,0.75324876,2758.0,2757.9,7.1945882]
[1724539038989,0.75324876,2758.0,2757.9,6.09524]
[1724539039172,2.56258585,2758.1,2757.9,2.4693]
[1724539040071,0.75266282,2758.0,2757.9,2.4693]
[1724539040513,2.56258585,2758.1,2757.9,2.4693]
[1724539041481,0.75258282,2758.0,2757.9,6.09523]
[1724539041903,0.75258282,2758.0,2757.9,2.4693]
[1724539044684,2.18619044,2758.1,2757.9,6.09524]
[1724539044892,0.75258282,2758.0,2757.9,6.09524]
[1724539045120,1.50640302,2758.3,2758.0,2.4693]
[1724539045121,0.75258282,2758.3,2758.0,2.4693]
[1724539045339,0.75258282,2758.7,2758.5,2.4693]
[1724539045489,0.75258282,2758.6,2758.5,2.4693]
[1724539046445,0.75258282,2758.7,2758.5,2.4693]
[1724539046755,0.75258282,2758.7,2758.5,6.09437]
[1724539047883,2.18619044,2758.6,2758.3,3.62534]
[1724539048572,1.43360762,2758.6,2758.3,3.62534]
[1724539049135,1.43360762,2758.6,2758.5,2.4693]
[1724539049362,1.43360762,2758.6,2758.5,6.09445]
[1724539050165,0.75258282,2758.8,2758.5,6.09445]
[1724539050372,1.43360762,2758.8,2758.6,3.62498]
[1724539051260,2.18619044,2758.8,2758.6,3.62498]
[1724539051468,1.43360762,2758.8,2758.6,3.62498]
[1724539052063,1.43360762,2758.8,2758.6,3.62495]
[1724539053184,2.18619044,2758.8,2758.5,2.4693]
[1724539053491,1.43360762,2758.6,2758.5,6.09445]
[1724539054186,1.43360762,2758.8,2758.5,6.09445]
[1724539054378,1.43360762,2758.8,2758.5,7.066413]
[1724539054809,1.43360762,2758.8,2758.6,3.62502]
[1724539055105,1.43360762,2758.8,2758.5,3.441263]
[1724539055346,1.43360762,2758.6,2758.5,6.09445]
[1724539056182,1.43360762,2758.6,2758.5,2.4693]
[1724539057383,1.43360762,2758.6,2758.5,6.09445]
[1724539059862,1.43360762,2758.8,2758.5,6.09445]
[1724539060166,1.43360762,2758.8,2758.6,3.62502]
[1724539065339,2.18619044,2758.8,2758.6,3.62502]
[1724539065524,2.18619044,2758.8,2758.5,6.09444]
[1724539065735,1.43360762,2758.6,2758.5,6.09444]
[1724539066104,1.43360762,2758.6,2758.5,2.4693]
[1724539066714,1.43360762,2758.6,2758.1,5.31933212]
[1724539066715,1.65222666,2758.6,2758.1,5.31933212]
[1724539066908,1.43360762,2758.2,2758.1,5.31933212]
[1724539067322,2.18619044,2758.2,2758.1,5.31933212]
[1724539068155,1.12897823,2758.3,2758.1,5.31933212]
[1724539068308,2.18575494,2758.2,2758.1,5.31933212]
[1724539068944,0.75214732,2758.2,2758.1,5.31933212]
[1724539069143,2.18575494,2758.3,2758.1,7.72003212]
[1724539069355,0.75214732,2758.2,2758.1,11.34571212]
[1724539069564,0.75214732,2758.2,2758.1,6.02638]
[1724539070353,2.56258585,2758.3,2758.1,6.02638]
[1724539071450,1.12897823,2758.2,2758.1,6.02638]
[1724539071652,2.56258585,2758.3,2758.1,6.02638]
[1724539071892,1.12897823,2758.2,2758.1,2.4007]
[1724539072273,1.43360762,2758.3,2758.1,2.4007]
[1724539072274,2.56258585,2758.3,2758.1,2.4007]
[1724539072481,1.12897823,2758.2,2758.1,2.4007]
[1724539072687,2.56258585,2758.3,2758.1,2.4007]
[1724539073401,1.12897823,2758.4,2758.2,3.62555]
[1724539073584,0.75336275,2758.3,2758.2,3.62555]
[1724539073912,2.18697037,2758.3,2758.2,9.6924]
[1724539074089,0.75341723,2758.4,2758.2,6.06685]
[1724539074297,0.75341723,2758.4,2758.3,4.5256282]
[1724539075307,2.56258585,2758.5,2758.4,3.62529]
[1724539076125,1.12897823,2758.5,2758.4,9.69188]
[1724539076332,1.50640302,2758.6,2758.5,9.6916]
[1724539076632,0.75379367,2758.8,2758.7,6.06612]
[1724539077778,0.75379367,2758.8,2758.7,9.69101]
[1724539077978,0.75379367,2758.8,2758.7,10.660111]
[1724539078183,1.43360762,2758.9,2758.8,3.62476]
[1724539078403,2.56258585,2758.9,2758.8,3.62476]
[1724539079267,1.43360762,2758.9,2758.5,3.62506]
[1724539079469,2.18737482,2758.6,2758.5,6.06636]
[1724539080370,2.18737482,2758.6,2758.5,7.42554182]
[1724539080703,1.43360762,2758.6,2758.5,7.42554182]
[1724539080902,2.18721875,2758.6,2758.5,6.06636]
[1724539083917,2.56425842,2758.6,2758.5,3.62506]
[1724539084222,1.43360762,2758.6,2758.5,3.62506]
[1724539084368,1.43360762,2758.6,2758.1,5.935232]
[1724539084369,1.13003458,2758.8,2758.7,2.2982]
[1724539084713,0.75339615,2758.8,2758.7,9.54798]
[1724539084923,1.13003458,2758.9,2758.8,7.24952]
[1724539084924,0.75339615,2758.9,2758.8,7.24952]
[1724539085499,0.75339615,2758.9,2758.8,8.566785]
[1724539085661,1.13003458,2759.0,2758.9,3.62463]
[1724539086161,2.94001064,2759.1,2758.9,3.62463]
[1724539086511,1.50640302,2759.1,2758.9,3.62463]
[1724539087308,0.33726342,2759.0,2758.9,3.62463]
[1724539087505,1.84366644,2759.0,2758.9,3.62463]
[1724539087812,1.84366644,2759.0,2758.7,2.2982]
[1724539088011,1.84366644,2759.0,2758.7,5.92296]
[1724539088012,1.12976477,2758.9,2758.7,5.92296]
[1724539088407,1.12976477,2758.8,2758.7,5.92296]
[1724539090147,1.12976477,2758.9,2758.8,3.62476]
[1724539090351,1.12976477,2758.9,2758.8,8.504292]
[1724539090585,1.12976477,2759.0,2758.9,7.24926]
[1724539090792,0.75345671,2759.0,2758.9,9.54746]
[1724539091684,0.75345671,2759.2,2759.1,2.2611]
[1724539091986,0.75345671,2759.2,2759.1,10.398413]
[1724539092402,1.12976477,2759.3,2759.1,10.398413]
[1724539092621,3.11465745,2760.3,2759.1,10.398413]
[1724539092622,1.50691675,2760.6,2759.6,2.2611]
[1724539092901,6.73641948,2761.5,2759.6,2.2611]
[1724539092902,2.63592074,2761.4,2761.3,3.62148]
[1724539093101,1.50691675,2761.4,2761.3,3.62148]
[1724539093443,1.50691675,2761.4,2761.3,7.24296]
[1724539093798,1.12900399,2762.4,2761.6,3.62106]
[1724539093955,3.76842636,2762.5,2761.6,3.62106]
[1724539094149,3.76842636,2762.5,2761.6,3.983166]
[1724539094498,6.25933237,2762.5,2761.3,3.62148]
[1724539094662,6.25933237,2762.5,2760.7,2.2611]
[1724539094663,3.43689589,2761.7,2760.7,2.2611]
[1724539094860,2.3844,2761.9,2761.1,3.62161]
[1724539095246,2.3844,2761.9,2761.2,3.62159]
[1724539095784,2.3844,2761.9,2761.0,3.62186]
[1724539095984,3.34151451,2761.9,2761.1,3.62174]
[1724539096246,3.43689589,2761.7,2761.0,0.362186]
[1724539096847,3.43689589,2761.4,2760.4,3.62254]
[1724539097047,3.34151451,2761.9,2760.4,3.62254]
[1724539097048,3.43689589,2761.1,2760.4,3.62254]
[1724539097276,3.43689589,2761.4,2760.7,3.62226]
[1724539097593,3.43689589,2761.4,2760.4,3.62254]
[1724539098680,3.43689589,2761.4,2760.6,3.62238]
[1724539098881,0.94425159,2761.3,2760.6,3.62238]
[1724539099599,0.94425159,2761.3,2760.6,4.32438]
[1724539100165,0.94425159,2761.3,2760.6,0.702]
[1724539100401,0.94425159,2761.3,2760.7,3.62225]
[1724539101946,3.43689589,2761.4,2760.8,3.62211]
[1724539102805,2.3844,2761.5,2760.7,3.62223]
[1724539102952,2.3844,2761.5,2760.8,3.62211]
[1724539103860,7.05799589,2761.6,2760.8,3.62211]
[1724539103861,3.43689589,2761.6,2760.8,3.62211]
[1724539104081,3.43689589,2761.6,2760.9,3.62188]
[1724539104281,3.43689589,2761.6,2760.6,4.32437]
[1724539104282,4.50477948,2761.6,2760.6,4.32437]
[1724539104451,3.62137,2761.4,2760.7,3.62218]
[1724539104667,3.43689589,2761.6,2760.9,3.62198]
[1724539104668,7.05799589,2761.6,2760.9,3.62198]
[1724539105654,3.62122,2761.5,2760.7,3.6222]
[1724539105856,3.62122,2761.5,2760.8,3.62212]
[1724539106050,3.62122,2761.5,2760.9,3.622]
[1724539106255,4.68912759,2761.5,2760.9,3.622]
[1724539107094,4.68912759,2761.5,2760.7,3.62219]
[1724539107308,3.43689589,2761.3,2760.7,3.62219]
[1724539107672,3.43689589,2761.3,2760.6,4.32437]
[1724539107870,3.43689589,2761.0,2760.6,4.32437]
[1724539108247,2.283,2761.2,2760.7,3.62225]
[1724539108448,2.283,2761.2,2760.6,4.32437]
[1724539108648,6.83877459,2761.2,2760.6,4.32437]
[1724539109599,3.21712459,2761.2,2760.7,3.62223]
[1724539110850,3.21712459,2761.2,2760.6,4.32437]
[1724539111145,6.83873459,2761.2,2760.6,4.32437]
[1724539111501,3.21712459,2761.2,2760.8,3.62204]
[1724539111700,3.21712459,2761.2,2760.6,4.32437]
[1724539111701,3.43689589,2761.0,2760.6,0.702]
[1724539111955,3.43689589,2761.0,2760.6,4.3243]
[1724539112157,3.21712459,2761.2,2760.8,3.62205]
[1724539112158,2.283,2761.2,2760.8,3.62205]
[1724539112720,2.283,2761.2,2760.8,3.62202]
[1724539112968,2.283,2761.2,2760.8,7.24406]
[1724539113220,3.43689589,2761.0,2760.6,4.32434]
[1724539113383,3.43689589,2760.7,2760.6,0.702]
[1724539114290,7.05915589,2760.7,2760.6,0.702]
[1724539114483,9.34485589,2760.7,2760.6,0.702]
[1724539116697,5.72259589,2760.7,2760.6,0.702]
[1724539117062,9.34485589,2760.7,2760.6,0.702]
[1724539117264,10.27932648,2760.7,2760.6,0.702]
[1724539118005,6.65706648,2760.7,2760.6,0.702]
[1724539118776,3.43689589,2760.7,2760.6,0.702]
[1724539119010,3.43689589,2761.0,2760.6,4.32439]
[1724539119919,7.05876589,2761.0,2760.6,0.702]
[1724539120063,3.43689589,2761.0,2760.6,0.702]
[1724539120263,3.43689589,2761.0,2760.6,4.32435]
[1724539120507,3.43689589,2761.0,2760.6,0.702]
[1724539120818,3.78058548,2761.0,2760.6,0.702]
[1724539124135,3.43689589,2761.0,2760.6,0.702]
[1724539124341,3.43689589,2761.0,2760.6,4.32436]
[1724539125196,3.43689589,2761.0,2760.6,0.702]
[1724539125537,3.62208,2760.9,2760.6,0.702]
[1724539127143,10.68141589,2760.7,2760.6,0.702]
[1724539127341,11.97812748,2760.7,2760.6,0.702]
[1724539127646,8.35586748,2760.7,2760.6,0.702]
[1724539128294,7.05915589,2760.7,2760.6,0.702]
[1724539128491,3.43689589,2760.7,2760.6,0.702]
[1724539131921,7.05915589,2760.7,2760.6,0.702]
[1724539132246,3.62201,2760.9,2760.6,0.702]
[1724539132538,10.68102589,2760.9,2760.6,0.702]
[1724539132743,8.12700848,2760.9,2760.6,0.702]
[1724539134345,3.62216,2760.8,2760.6,0.702]
[1724539136228,4.50499848,2760.9,2760.6,0.702]
[1724539136440,8.12701848,2760.9,2760.6,0.702]
[1724539136649,9.25602247,2760.9,2760.6,0.702]
[1724539136844,1.12900399,2760.9,2760.6,3.0572]
[1724539137050,1.49698753,2761.1,2760.6,6.67959]
[1724539137051,1.12900399,2761.1,2760.6,6.67959]
[1724539138446,1.12900399,2761.1,2760.7,3.62224]
[1724539138945,1.12900399,2761.1,2760.6,6.67959]
[1724539138946,1.12900399,2761.2,2760.8,3.62211]
[1724539139147,1.12900399,2761.3,2760.9,6.339381]
[1724539139315,1.12900399,2761.3,2760.9,2.3552]
[1724539140122,1.12900399,2761.3,2760.9,5.9772]
[1724539140651,1.12900399,2761.2,2760.9,2.3552]
[1724539141353,1.12900399,2761.3,2760.9,5.97717]
[1724539141511,1.12900399,2761.2,2760.9,5.97717]
[1724539141852,1.12900399,2761.2,2760.9,6.937091]
[1724539142164,1.12900399,2761.3,2760.9,6.937091]
[1724539143231,1.12900399,2761.2,2760.9,6.937091]
[1724539144229,1.12900399,2761.2,2761.0,3.62187]
[1724539144518,1.12900399,2761.3,2761.0,3.62187]
[1724539144723,1.12900399,2761.3,2761.1,0.6936991]
[1724539149377,1.12900399,2761.4,2761.1,0.6936991]
[1724539150795,1.12900399,2761.3,2761.1,0.6936991]
[1724539150947,1.12900399,2761.3,2760.9,2.3552]
[1724539150948,3.43689589,2761.3,2760.9,2.3552]
[1724539151144,1.12900399,2761.0,2760.6,6.67952]
[1724539151595,4.56589988,2761.0,2760.6,6.67952]
[1724539151947,4.56589988,2761.0,2760.6,3.0572]
[1724539152188,3.43689589,2760.7,2760.6,0.702]
[1724539152355,10.68141589,2760.7,2760.6,0.702]
[1724539152559,5.32194123,2760.7,2760.6,0.702]
[1724539152859,1.88504534,2760.7,2760.6,0.702]
[1724539153058,1.50814793,2760.8,2760.6,0.702]
[1724539154198,1.13118867,2760.7,2760.6,4.63342]
[1724539154407,1.13118867,2760.9,2760.6,1.01113]
[1724539154698,4.56808456,2760.7,2760.6,0.702]
[1724539155001,8.56730382,2760.7,2760.6,0.702]
[1724539155590,4.94504382,2760.7,2760.6,0.702]
[1724539155902,1.50814793,2760.8,2760.6,0.702]
[1724539156195,1.13134572,2760.7,2760.6,0.702]
[1724539157226,1.13134572,2760.7,2760.6,1.134464]
[1724539157493,1.50814793,2760.8,2760.6,6.7137]
[1724539157494,1.13134572,2760.8,2760.6,6.7137]
[1724539157678,1.13134572,2760.8,2760.6,6.71359]
[1724539157883,1.88590368,2761.1,2760.6,6.71359]
[1724539157884,1.13134572,2761.0,2760.6,6.71359]
[1724539158194,1.50814793,2761.1,2760.8,3.62213]
[1724539158195,1.13134572,2761.1,2760.8,3.62213]
[1724539161680,1.13134572,2761.1,2759.5,0.75404599]
[1724539161681,7.24742,2759.6,2759.5,0.75404599]
[1724539161885,3.62283,2760.3,2759.0,2.3893]
[1724539161886,4.94725216,2759.7,2759.0,2.3893]
[1724539162109,1.13273085,2759.7,2759.3,3.62406]
[1724539162397,1.51035627,2759.9,2759.3,3.62406]
[1724539162398,0.75477748,2759.6,2759.3,3.62406]
[1724539162570,1.13273085,2759.8,2759.3,3.62406]
[1724539162571,0.75477748,2759.7,2759.3,3.62406]
[1724539162773,0.75477748,2759.7,2759.4,3.62397]
[1724539163099,0.75477748,2759.7,2759.6,7.24742]
[1724539163307,0.75477748,2760.1,2759.5,2.3893]
[1724539163465,0.75477748,2760.3,2760.1,2.3893]
[1724539163649,0.75477748,2760.6,2760.2,3.62292]
[1724539163959,0.75477748,2760.5,2760.2,3.62291]
[1724539164464,1.13273085,2760.6,2760.3,3.62277]
[1724539164465,0.60477748,2760.6,2760.3,3.62277]
[1724539164656,1.13273085,2760.8,2760.3,3.62277]
[1724539165475,1.13273085,2760.8,2760.4,3.62257]
[1724539165773,1.88794534,2761.1,2760.6,3.62237]
[1724539165774,1.13273085,2761.1,2760.6,3.62237]
[1724539166099,1.51035627,2761.2,2760.8,3.62209]
[1724539166100,1.13273085,2761.2,2760.8,3.62209]
[1724539166449,1.13273085,2761.2,2760.7,0.601167]
[1724539166696,1.13273085,2761.1,2760.7,0.601167]
[1724539166899,1.13273085,2761.0,2760.7,0.601167]
[1724539168576,3.43689589,2760.9,2760.2,6.975716]
[1724539168774,4.75492085,2760.8,2760.2,6.975716]
[1724539169012,1.13273085,2760.7,2760.2,6.975716]
[1724539169888,1.13273085,2760.7,2760.3,3.62277]
[1724539170068,1.13273085,2760.7,2760.3,4.6826186]
[1724539170273,1.13273085,2760.7,2760.3,1.0598486]
[1724539170688,1.13273085,2760.7,2760.2,2.3893]
[1724539171406,1.13273085,2760.9,2760.4,3.62256]
[1724539171700,1.13273085,2760.8,2760.4,3.62256]
[1724539172661,4.56962674,2760.7,2760.2,6.01217]
[1724539172866,4.56962674,2760.7,2760.2,6.01213]
[1724539173385,1.13273085,2760.7,2760.3,3.6227]
[1724539174062,1.13273085,2760.6,2760.3,3.6227]
[1724539174400,0.75714425,2760.5,2760.3,3.6227]
[1724539174567,0.75714425,2760.5,2760.2,6.01213]
[1724539175276,0.75714425,2760.5,2760.2,6.01212]
[1724539175658,0.75714425,2760.5,2760.2,9.63495]
[1724539176305,0.75714425,2760.5,2760.4,3.62266]
[1724539176504,4.94725216,2760.8,2760.4,3.62266]
[1724539176505,0.75714425,2760.6,2760.4,3.62266]
[1724539176711,0.75714425,2760.6,2760.4,3.62257]
[1724539177405,0.75714425,2760.6,2760.5,3.62253]
[1724539177606,0.75714425,2760.6,2760.4,3.62257]
[1724539177812,0.75714425,2760.6,2760.2,6.01216]
[1724539178107,0.75714425,2760.5,2760.2,6.01216]
[1724539178314,0.75714425,2760.5,2760.2,9.635]
[1724539178618,0.75714425,2760.5,2760.3,3.62275]
[1724539178909,0.75714425,2760.5,2760.4,3.62266]
[1724539179210,0.75714425,2760.6,2760.4,3.62266]
[1724539180467,0.75714425,2760.6,2760.5,3.62253]
[1724539183009,1.13273085,2760.6,2760.2,2.3893]
[1724539183209,0.75744422,2760.3,2760.1,3.62294]
[1724539183416,0.75744422,2760.3,2759.9,13.44714]
[1724539183583,0.75744422,2760.3,2760.1,3.62304]
[1724539184020,0.75744422,2760.3,2759.9,13.44711]
[1724539185012,0.75744422,2760.3,2760.0,3.62311]
[1724539185368,0.75744422,2760.3,2759.4,4.348743]
[1724539185369,4.19434011,2760.2,2759.5,13.44767]
[1724539185614,3.43689589,2759.9,2759.5,13.44767]
[1724539185827,3.43689589,2759.9,2759.5,13.44766]
[1724539186109,0.75744422,2759.8,2759.5,13.44766]
[1724539186320,4.19434011,2759.9,2759.5,13.44766]
[1724539187797,4.19434011,2759.9,2759.5,13.44765]
[1724539188713,4.19434011,2759.9,2759.5,3.62375]
[1724539189116,4.19434011,2759.9,2759.5,7.24751]
[1724539189117,0.75744422,2759.8,2759.5,7.24751]
[1724539189417,4.19434011,2759.9,2759.5,3.62375]
[1724539189573,4.19434011,2759.9,2759.5,7.2475]
[1724539189773,4.19434011,2759.9,2759.5,3.62375]
[1724539189995,4.19434011,2759.9,2759.6,3.62369]
[1724539191389,4.19434011,2759.9,2759.5,3.62375]
[1724539191601,4.19434011,2759.9,2759.5,7.24751]
[1724539192606,4.19434011,2759.9,2759.6,3.62367]
[1724539193121,3.43689589,2759.9,2759.6,3.62367]
[1724539193476,4.19434011,2759.9,2759.6,3.62367]
[1724539194233,3.43689589,2759.9,2759.6,3.62367]
[1724539194381,3.43689589,2759.9,2759.7,3.62354]
[1724539194927,3.43689589,2759.9,2759.6,3.62367]
[1724539195336,4.19434011,2759.9,2759.6,3.62367]
[1724539195521,0.75744422,2760.0,2759.6,3.62367]
[1724539196388,0.75744422,2760.1,2760.0,3.62318]
[1724539196590,0.75744422,2760.2,2760.0,3.62318]
[1724539196989,0.75744422,2760.3,2760.0,3.62318]
[1724539197291,0.75744422,2760.3,2760.1,3.62303]
[1724539198592,0.75744422,2760.3,2759.9,3.62321]
[1724539198740,0.75744422,2760.3,2760.0,3.985411]
[1724539200027,0.75744422,2760.3,2760.1,3.62297]
[1724539200236,4.19434011,2760.4,2760.1,3.62297]
[1724539200708,4.19434011,2760.4,2760.1,3.62305]
[1724539200904,1.13273085,2760.5,2760.3,3.62279]
[1724539201106,1.51035627,2760.8,2760.5,3.62253]
[1724539201107,0.75744422,2760.7,2760.5,3.62253]
[1724539201420,0.75744422,2760.7,2760.3,3.62269]
[1724539201624,0.75744422,2760.6,2760.3,3.62269]
[1724539202646,0.75744422,2760.6,2760.4,3.62266]
[1724539203332,0.75744422,2760.6,2760.2,6.18583]
[1724539203540,1.89017507,2760.6,2760.2,6.18583]
[1724539203717,0.75744422,2760.6,2760.2,6.18583]
[1724539204325,0.75744422,2760.5,2760.2,6.18583]
[1724539204646,4.56962674,2760.7,2760.3,3.62277]
[1724539204647,0.75744422,2760.6,2760.3,3.62277]
[1724539204860,0.75744422,2760.6,2760.4,3.62266]
[1724539205645,0.75744422,2760.6,2760.3,3.62277]
[1724539205951,0.75744422,2760.6,2760.3,3.6227]
[1724539206141,0.75744422,2760.6,2760.4,3.62264]
[1724539207517,0.75744422,2760.7,2760.5,3.62251]
[1724539207927,0.75744422,2760.7,2760.6,3.6224]
[1724539208323,0.75744422,2760.8,2760.5,3.62251]
[1724539208562,1.13273085,2760.6,2760.0,3.62318]
[1724539208766,0.75884276,2760.3,2760.0,3.62318]
[1724539209063,0.75884276,2760.3,2759.9,3.6233]
[1724539209232,0.75884276,2760.3,2760.0,3.62318]
[1724539209429,0.75884276,2760.2,2760.0,3.62318]
[1724539209619,0.75884276,2760.3,2760.0,3.62318]
[1724539210259,0.75884276,2760.3,2759.4,15.84395]
[1724539210260,8.19829004,2760.1,2759.5,3.62383]
[1724539210461,3.43689589,2759.8,2759.5,3.62383]
[1724539210632,4.19570366,2759.8,2759.5,3.62383]
[1724539211031,0.75880777,2759.8,2759.6,3.62368]
[1724539211366,0.75880777,2759.9,2759.7,3.62358]
[1724539211659,0.75880777,2759.8,2759.6,7.24723]
[1724539211816,0.75880777,2759.8,2759.6,3.62361]
[1724539212214,0.75880777,2759.8,2759.7,3.62358]
[1724539212415,0.75880777,2759.8,2759.6,3.62361]
[1724539212614,0.75880777,2759.8,2759.6,7.24723]
[1724539213232,0.75880777,2759.9,2759.7,3.62358]
[1724539214271,0.75880777,2759.9,2759.8,3.62345]
[1724539215365,0.75880777,2760.0,2759.8,3.62345]
[1724539215726,0.75880777,2759.9,2759.8,3.62345]
[1724539216423,0.75880777,2760.0,2759.8,3.62345]
[1724539216623,0.75880777,2759.9,2759.6,3.6236]
[1724539216825,0.75880777,2759.9,2759.6,3.62359]
[1724539217026,0.75880777,2759.8,2759.6,3.62359]
[1724539217260,0.75880777,2759.8,2759.4,6.18686]
[1724539219842,0.75880777,2760.0,2759.8,6.20815]
[1724539220226,0.75880777,2760.0,2759.9,3.62331]
[1724539220426,0.75880777,2760.1,2760.0,3.62318]
[1724539220668,0.75880777,2760.1,2759.1,6.62432]
[1724539220669,4.57467174,2760.1,2759.2,2.5847]
[1724539220977,0.7585197,2759.7,2759.4,3.62396]
[1724539223282,0.7585197,2759.7,2759.5,3.62382]
[1724539223572,4.19541559,2759.8,2759.5,3.62382]
[1724539223784,0.7585197,2759.7,2759.5,3.62382]
[1724539224471,4.19541559,2759.8,2759.5,3.62382]
[1724539225635,4.19541559,2759.8,2759.5,3.62376]
[1724539226255,4.19541559,2759.8,2759.5,7.24752]
[1724539226876,4.19541559,2759.8,2759.6,3.6237]
[1724539228088,0.7585197,2759.8,2759.7,6.20828]
[1724539228234,0.7585197,2760.0,2759.7,6.20828]
[1724539228435,0.7585197,2760.1,2760.0,9.83106]
[1724539228635,0.7585197,2760.7,2760.6,7.2448]
[1724539228942,0.7585197,2760.8,2760.7,3.62226]
[1724539229738,0.7585197,2760.9,2760.7,3.62226]
[1724539230643,0.7585197,2760.8,2760.7,3.62226]
[1724539232234,0.7585197,2760.9,2760.7,5.96256]
[1724539232434,0.7585197,2760.9,2760.8,3.62213]
[1724539233340,0.7585197,2760.9,2760.6,3.6224]
[1724539233590,0.7585197,2760.9,2760.6,7.24471]
[1724539233886,0.7585197,2760.9,2760.6,4.580811]
[1724539235291,0.7585197,2760.9,2760.7,3.62226]
[1724539236155,0.7585197,2760.9,2760.4,5.96286]
[1724539236358,0.7585197,2760.7,2760.4,3.62256]